{"text_format":"1","workbook":"xlsx","n_sheets":1,"sheets":["ДОХОДЫ"],"not_rendered":{"charts":0,"images":0,"macros":0,"external_links":0,"defined_names":1,"comments":0,"pivot_tables":0},"unopened":[],"bounds":{"document_bytes":16777216,"sheet_cells":100000,"rows_first":2000,"rows_last":500,"rows_between":2000,"halvings":0,"cell_chars":16384,"cell_head_chars":4096},"cells_cut":0,"cells_raw":0,"read":"whole","date_system":"1900"}

{"sheet":"ДОХОДЫ","index":0,"n_rows":51,"n_cols":5,"rows_kept":51,"cut":false,"hidden":false,"merged":[[5,0,5,4],[6,0,6,4],[7,0,7,4],[9,0,10,0],[9,1,10,1],[9,2,10,2],[9,3,10,3],[9,4,10,4]]}
[null,null,"Приложение  5"]
[null,null,"к решению"]
[null,null,"Волгоградской городской Думы"]
[null,null,"от________________ №_______"]
[]
["Исполнение доходов бюджета по кодам видов доходов, подвидов,"]
["классификации операций сектора государственного управления, относящихся "]
["к доходам бюджета за 2011 год "]
[]
["Код бюджетной классификации","Наименование","Утверждено по  бюджету\n(тыс. руб.)","Исполнено \n(тыс. руб.)","% ис-полнения"]
[]
[1,2,3,4,5]
["8 50 00000 00 0000 000","Доходы бюджета -итого",{"$f":"C14+C47","v":15026677.4},{"$f":"D14+D47","v":14328159.807},{"$f":"D13/C13*100","v":95.351483402445297}]
["1 00 00000 00 0000 000","Налоговые и неналоговые доходы",{"$f":"C15+C26","v":9011827.5},{"$f":"D15+D26","v":8841464.807},{"$f":"D14/C14*100","v":98.109565534848514}]
[null,"Налоговые доходы",{"$f":"C16+C18+C21+C24+C25","v":6764276.5},{"$f":"D16+D18+D21+D24+D25","v":6599896},{"$f":"D15/C15*100","v":97.569873141643455}]
["1 01 00000 00 0000 000","Налоги на прибыль, доходы",{"$f":"C17","v":4823400},{"$f":"D17","v":4819264.0999999996},99.914253431189621]
["1 01 02000 01 0000 110","Налог на доходы физических лиц ",4823400,4819264.0999999996,99.914253431189621]
["1 05 00000 00 0000 000","Налоги на совокупный доход",{"$f":"C19+C20","v":734593},{"$f":"D19+D20","v":625646.9},85.169188925023789]
["1 05 02000 02 0000 110","Единый налог на вмененный доход для отдельных  видов деятельности",730619,622031.6,85.137616185727438]
["1 05 03000 01 0000 110","Единый сельскохозяйственный налог",3974,3615.3,90.973829894313042]
["1 06 00000 00 0000 000","Налоги на имущество",{"$f":"C22+C23","v":886872.5},{"$f":"D22+D23","v":832681.29999999993},93.889629005296698]
["1 06 01000 00 0000 110","Налог на имущество физических лиц",55135.5,55509.599999999999,100.67851021574121]
["1 06 06000 00 0000 110","Земельный налог",831737,777171.7,93.439596891805948]
["1 08 00000 00 0000 000","Государственная пошлина",319411,322834,101.07166002423212]
["1 09 00000 00 0000 000","Задолженность и перерасчеты по отмененным налогам, сборам и иным обязательным платежам",0,-530.29999999999995]
[null,"Неналоговые доходы",{"$f":"C27+C36+C40+C41+C45+C46","v":2247551},{"$f":"D27+D36+D40+D41+D45+D46","v":2241568.807},99.733835049794195]
["1 11 00000 00 0000 000","Доходы от использования имущества, находящегося в государственной и муниципальной собственности ",1438302,1434019.9839999999,99.702286724206729]
["1 11 01000 00 0000 120","Доходы в виде прибыли, приходящейся на доли в уставных (складочных) капиталах хозяйственных товариществ и обществ, или дивидендов по акциям, принадлежащим Российской Федерации, субъектам Российской Федерации или муниципальным образованиям",3000,2339,77.966666666666669]
["1 11 02000 00 0000 120","Доходы от размещения  средств бюджета",0,2.2000000000000002]
["1 11 05000 00 0000 120","Доходы, получаемые в виде арендной либо иной платы за передачу в возмездное пользование государственного и муниципального имущества (за исключением имущества бюджетных и автономных учреждений, а также имущества государственных и муниципальных унитарных предприятий, в том числе казенных)",1123540,1090211.1240000001,97.033583495024658]
["1 11 05010 00 0000 120","Доходы, получаемые в виде арендной платы за земельные участки, государственная собственность на которые не разграничена, а также средства от продажи права на заключение договоров аренды указанных земельных участков",1096840,1023665.955,93.32864911928813]
["1 11 05020 00 0000 120","Доходы, получаемые в виде арендной платы за земли после разграничения государственной собственности на землю, а также средства от продажи права на заключение договоров аренды указанных земельных участков (за исключением земельных участков бюджетных и автономных учреждений)",25000,26248.067999999999,104.99227199999999]
["111 05030 00 0000 120","Доходы от сдачи в аренду имущества, находящегося в оперативном управлении органов государственной власти, органов местного самоуправления, государственных внебюджетных фондов и созданных ими учреждений (за исключением имущества бюджетных и автономных учреждений)",1700,40297.1,2370.4176470588231]
["1 11 07000 00 0000 120","Платежи от государственных и муниципальных унитарных предприятий",28866,23718.6,82.167948451465392]
["1 11 09000 00 0000 120","Прочие доходы от использования  имущества и прав, находящихся в государственной и  муниципальной собственности (за исключением имущества автономных учреждений, а также имущества государственных и муниципальных унитарных предприятий, в том числе казенных)",282896,317749.09999999998,112.32011057066906]
["1 12 00000 00 0000 000","Плата за пользование природными ресурсами",{"$f":"C38+C39","v":46572},{"$f":"D38+D39","v":44550},95.658335480546256]
[null,"в том числе:"]
["1 12 01000 01 0000 120","Плата за негативное воздействие на окружающую среду",46246,44550,96.332655797258141]
["1 12 05000 00 0000 120","Плата за пользование водными объектами",326,0,0]
["1 13 00000 00 0000 000","Доходы от оказания платных услуг и компенсации затрат государства",63252,72902.8,115.25769936128502]
["1 14 00000 00 0000 000","Доходы от продажи материальных и нематериальных активов",{"$f":"C42+C43+C44","v":546780},{"$f":"D42+D43+D44","v":527975.223},96.560814770108635]
["1 14 01000 00 0000 000","Доходы от продажи квартир",1049,1741.0129999999999,165.96882745471876]
["1 14 02000 00 0000 000","Доходы от реализации имущества, находящегося в государственной и муниципальной собственности (за исключением имущества автономных учреждений, а также имущества государственных и муниципальных унитарных предприятий, в том числе казенных)",358731,411112.1,114.60177681884196]
["1 14 06000 00 0000 430","Доходы от продажи земельных участков, находящихся в государственной и муниципальной собственности (за исключением земельных участков автономных учреждений)",187000,115122.11,61.562625668449201]
["1 16 00000 00 0000 000","Штрафы, санкции, возмещение ущерба",151717,161401.4,106.38320030055959]
["1 17 00000 00 0000 000","Прочие неналоговые доходы",928,719.4,77.521551724137922]
["2 00 00000 00 0000 000","Безвозмездные поступления ",6014849.9000000004,5486695,91.219150788783594]
[]
[]
["Первый заместитель председателя"]
["Волгоградской городской Думы                                  А.И. Мордвинцев"]